bitfinex/quotes_ETHUSD_20250129
["timestamp","ask_amount","ask_price","bid_price","bid_amount"]
[1738180895986,0.55,3113.2,3112.4,3.21291]
[1738180895987,3.21214,3113.2,3112.4,3.21291]
[1738180896187,3.21069,3114.6,3112.5,0.0075]
[1738180896440,3.21069,3114.6,3112.4,0.321291]
[1738180896441,3.21028,3115.0,3113.9,0.7857]
[1738180896601,0.7925,3115.7,3113.9,0.7857]
[1738180896805,0.7925,3115.7,3114.0,3.21125]
[1738180897147,4.00205,3115.7,3114.7,0.0075]
[1738180897363,0.7835,3116.6,3114.8,0.0075]
[1738180897488,0.7835,3116.6,3115.5,0.7608]
[1738180897687,1.77916247,3116.7,3115.8,0.0075]
[1738180897994,3.20862,3116.6,3115.8,0.0075]
[1738180898187,1.77916247,3116.7,3115.9,3.20933]
[1738180898394,4.98770247,3116.7,3115.9,3.20933]
[1738180898589,0.30130537,3116.7,3116.0,0.7794]
[1738180898851,4.01363,3117.7,3116.0,0.7794]
[1738180898992,3.20815,3117.1,3116.0,0.7794]
[1738180899338,3.20815,3117.1,3115.2,0.7794]
[1738180899339,3.2093,3116.0,3115.2,0.7794]
[1738180899540,3.20935,3115.9,3115.2,0.7794]
[1738180899748,3.20904,3116.2,3115.2,0.7794]
[1738180899905,3.2086,3116.7,3115.7,3.20945]
[1738180900106,0.7567,3117.2,3115.4,0.821]
[1738180900366,0.55,3116.1,3114.9,0.7509]
[1738180900534,0.55,3116.1,3114.1,3.21117]
[1738180900535,3.21068,3114.6,3113.6,0.7509]
[1738180900843,3.0,3115.2,3113.6,0.7509]
[1738180900844,3.21111,3114.2,3113.6,0.7509]
[1738180901020,3.0,3115.4,3113.6,0.7509]
[1738180901021,0.799,3115.7,3113.9,3.21135]
[1738180901188,3.21099,3114.3,3113.6,0.7509]
[1738180901390,3.21102,3114.3,3113.6,0.7509]
[1738180901623,3.21058,3114.7,3113.6,0.7509]
[1738180901840,3.21039,3114.9,3113.7,0.0075]
[1738180902045,0.799,3115.7,3114.5,0.8206]
[1738180902046,3.21017,3115.1,3114.5,0.8206]
[1738180902258,0.7874,3116.4,3114.8,0.0075]
[1738180902391,3.20924,3116.0,3115.2,3.21002]
[1738180902588,0.7874,3116.9,3115.4,0.8276]
[1738180902903,3.0,3116.3,3115.4,0.8276]
[1738180903156,3.0,3116.3,3113.6,3.21169]
[1738180903157,3.21015,3115.2,3114.6,0.7973]
[1738180903451,3.0,3115.6,3113.8,0.7973]
[1738180903606,3.0,3115.3,3113.8,0.7973]
[1738180903955,3.20975,3115.6,3114.1,3.2111]
[1738180904131,3.20975,3115.6,3114.0,0.0075]
[1738180904132,0.7742,3115.9,3113.8,4.00878]
[1738180904312,3.55,3115.8,3114.0,0.0075]
[1738180904497,3.21025,3115.1,3114.3,0.0075]
[1738180904701,0.781,3116.4,3114.0,0.7588]
[1738180904950,3.20988,3115.4,3114.8,0.7513]
[1738180905152,3.2092,3116.1,3115.2,3.21001]
[1738180905363,3.20873,3116.5,3114.8,0.7513]
[1738180905651,0.7538,3117.4,3115.8,0.759]
[1738180906136,3.21177,3118.4,3115.8,0.759]
[1738180906137,3.0,3117.7,3115.9,3.2093]
[1738180906301,3.2085,3116.8,3115.9,3.2093]
[1738180906496,3.20738,3117.8,3115.8,0.759]
[1738180906497,3.20706,3118.2,3116.0,0.0075]
[1738180906744,3.20715,3118.1,3116.8,0.8172]
[1738180906949,3.0075,3117.7,3116.8,0.8172]
[1738180907160,3.2081,3117.2,3116.8,0.8172]
[1738180907464,3.7998,3118.0,3116.8,0.8172]
[1738180907749,3.20728,3117.9,3116.3,0.7956]
[1738180907997,0.0075,3117.5,3116.3,0.7956]
[1738180908198,3.20903,3116.3,3115.6,0.7956]
[1738180908493,3.20919,3116.1,3115.6,0.7956]
[1738180908716,3.20874,3116.5,3115.6,0.7956]
[1738180908870,0.7887,3118.3,3116.8,0.8167]
[1738180909207,3.20826,3117.0,3116.8,0.8167]
[1738180909407,0.5575,3117.7,3116.8,0.8167]
[1738180909551,0.55,3117.3,3116.3,0.7731]
[1738180909741,3.20883,3116.4,3116.3,0.7731]
[1738180909948,3.20872,3116.5,3116.3,0.7731]
[1738180910186,3.20811,3117.1,3115.8,0.7609]
[1738180910187,3.20893,3116.3,3115.8,0.7609]
[1738180910348,3.20875,3116.5,3115.8,0.7609]
[1738180910571,3.20808,3117.2,3115.9,0.0075]
[1738180910752,1.289372,3118.4,3117.4,0.0075]
[1738180910753,3.20687,3118.3,3117.4,0.0075]
[1738180910951,0.005,3118.4,3117.8,3.20732]
[1738180911294,0.005,3118.4,3117.9,0.7709]
[1738180911295,3.20718,3118.0,3117.9,0.7709]
[1738180911502,3.20718,3118.0,3117.4,0.7709]
[1738180911669,0.7987,3118.3,3116.9,0.7709]
[1738180912002,0.005,3118.4,3116.9,0.7709]
[1738180912003,3.20697,3118.2,3117.6,0.0075]
[1738180912151,3.21177,3118.4,3116.9,0.7709]
[1738180912152,0.005,3118.4,3116.9,0.7709]
[1738180912345,0.0125,3118.4,3116.9,0.7709]
[1738180912552,3.20752,3117.7,3116.9,0.7709]
[1738180912769,3.20797,3117.3,3117.0,0.0075]
[1738180912966,0.55,3117.1,3117.0,0.0075]
[1738180913250,3.75811,3117.1,3117.0,0.0075]
[1738180913468,3.20811,3117.1,3117.0,0.0075]
[1738180914120,6.20811,3117.1,3117.0,0.0075]
[1738180914511,3.20811,3117.1,3117.0,0.0075]
[1738180914661,3.20798,3117.3,3117.0,0.0075]
[1738180914868,3.20727,3118.0,3116.9,0.762]
[1738180915118,3.0,3118.0,3116.9,0.762]
[1738180915319,3.20821,3117.0,3116.9,0.762]
[1738180915621,3.20859,3116.7,3116.2,0.0075]
[1738180915793,3.20738,3117.8,3116.2,0.0075]
[1738180915794,3.2085,3116.8,3116.2,0.0075]
[1738180915970,0.5575,3117.7,3116.1,0.762]
[1738180916172,3.2087,3116.6,3116.1,0.762]
[1738180916569,3.20798,3117.3,3116.5,3.20868]
[1738180916807,3.2096,3115.7,3115.4,0.8086]
[1738180917018,3.2096,3115.7,3114.0,0.7341761]
[1738180917019,3.20883,3116.4,3115.0,3.21026]
[1738180917303,3.20876,3116.5,3115.3,0.8086]
[1738180917505,3.20883,3116.4,3115.7,3.20946]
[1738180917689,3.20955,3115.7,3115.6,0.0075]
[1738180917898,3.20986,3115.4,3115.3,0.8086]
[1738180918087,0.7908,3116.5,3114.3,0.787]
[1738180918302,3.20972,3115.6,3115.0,0.0075]
[1738180918486,3.20983,3115.5,3115.0,0.0075]
[1738180918803,3.20838,3116.9,3114.6,3.21065]
[1738180918804,3.20912,3116.2,3115.5,3.20972]
[1738180918963,3.20912,3116.2,3115.7,0.0075]
[1738180919160,4.00413,3117.1,3115.7,0.0075]
[1738180919161,0.796,3117.1,3115.7,0.0075]
[1738180919406,3.20941,3115.9,3115.2,4.03564]
[1738180919611,3.20872,3116.5,3115.2,0.8256]
[1738180919903,3.20934,3115.9,3115.2,0.8256]
[1738180920079,3.20996,3115.3,3115.2,0.8256]
[1738180920286,3.20954,3115.8,3115.2,0.8256]
[1738180920470,3.20906,3116.2,3115.3,0.0075]
[1738180920666,3.0,3116.3,3115.5,3.20974]
[1738180920862,3.0,3116.3,3115.2,0.8256]
[1738180921112,3.0,3116.3,3115.8,6.41876]
[1738180921273,3.0,3116.3,3116.1,0.81]
[1738180921474,3.0,3116.3,3116.2,0.0075]
[1738180921680,3.0,3116.3,3116.1,0.8025]
[1738180921924,3.0,3116.3,3116.2,3.21653]
[1738180922112,3.0,3116.3,3116.2,3.618433]
[1738180922275,3.20644,3118.8,3117.6,3.20756]
[1738180922276,0.7688,3118.6,3117.6,3.20756]
[1738180922469,3.30553,3119.7,3117.6,3.20756]
[1738180922470,3.20687,3118.3,3117.6,3.20756]
[1738180922674,3.20698,3118.2,3117.8,0.0075]
[1738180922986,3.20747,3117.8,3117.4,0.8111]
[1738180923355,0.7688,3119.1,3117.4,0.8111]
[1738180923507,3.20643,3118.8,3118.1,3.20699]
[1738180923693,3.20596,3119.2,3118.0,0.0075]
[1738180923890,0.7798,3119.6,3117.8,3.20729]
[1738180924137,0.7798,3119.6,3117.4,0.8111]
[1738180924138,3.20708,3118.1,3117.4,0.8111]
[1738180924339,3.2067,3118.5,3117.4,0.8111]
[1738180924545,3.20643,3118.8,3117.2,6.416]
[1738180924690,3.20643,3118.8,3118.3,0.8331]
[1738180924897,3.20599,3119.2,3118.3,4.04747]
[1738180925207,3.20556,3119.6,3118.3,4.04747]
[1738180925452,1e-05,3118.4,3118.3,4.04747]
[1738180925732,3.20434,3120.8,3119.7,0.7513]
[1738180925903,3.99694,3121.0,3119.7,0.7513]
[1738180926096,3.20521,3120.0,3119.7,0.7588]
[1738180926292,3.99692,3121.0,3119.7,0.7588]
[1738180926293,3.20455,3120.6,3119.8,0.0075]
[1738180926497,0.55,3120.9,3119.2,3.99474]
[1738180926698,3.20542,3119.8,3119.2,0.7888]
[1738180926904,3.20527,3119.9,3119.2,3.99474]
[1738180927306,3.99694,3121.0,3119.3,0.0075]
[1738180927510,3.20576,3119.4,3119.2,0.7888]
[1738180927733,3.2051,3120.1,3118.5,3.20665]
[1738180927734,3.20596,3119.2,3118.5,3.20665]
[1738180927936,0.55,3119.3,3118.3,0.8177]
[1738180928146,0.55,3119.3,3117.8,0.829]
[1738180928147,0.7593,3119.2,3117.8,0.829]
[1738180928361,0.55,3118.9,3117.8,0.829]
[1738180928515,3.20619,3119.0,3117.8,0.829]
[1738180928699,3.20635,3118.9,3118.3,0.0075]
[1738180929036,0.7586,3119.8,3118.4,0.7891]
[1738180929191,0.7586,3119.8,3116.8,0.2]
[1738180929192,3.20707,3118.2,3118.0,0.7891]
[1738180929395,3.20737,3117.9,3117.2,3.99706]
[1738180929638,3.20758,3117.7,3117.2,0.7891]
[1738180929833,0.7594,3118.8,3117.2,0.7891]
[1738180929834,3.2066,3118.6,3117.2,0.7891]
[1738180930037,3.97225,3119.3,3117.4,6.4156]
[1738180930332,3.20605,3119.1,3118.2,0.7523]
[1738180930585,0.8144,3119.9,3118.3,0.0075]
[1738180930710,2.31,3121.2,3119.1,0.7598]
[1738180930711,3.20533,3119.8,3119.1,0.7598]
[1738180930910,3.20516,3120.0,3119.1,0.7598]
[1738180930911,3.20595,3119.2,3119.1,0.7523]
[1738180931155,3.20595,3119.2,3118.1,3.20698]
[1738180931156,3.20644,3118.8,3118.2,0.7523]
[1738180931316,3.2065,3118.7,3118.2,0.7523]
[1738180931514,3.20687,3118.3,3118.2,0.7523]
[1738180931734,3.20687,3118.3,3117.4,3.2077]
[1738180931735,0.55,3118.6,3117.3,0.8231]
[1738180931936,3.2076,3117.6,3117.3,0.8231]
[1738180932307,3.20677,3118.4,3117.4,0.0075]
[1738180932510,3.20657,3118.6,3117.9,0.0075]
[1738180932708,3.20612,3119.1,3118.4,0.0075]
[1738180932935,3.20602,3119.2,3118.2,0.0075]
[1738180933234,3.0,3120.1,3118.0,0.8102]
[1738180933235,3.20659,3118.6,3118.0,4.01737]
[1738180933436,3.20687,3118.3,3117.4,3.20771]
[1738180933619,3.20769,3117.5,3117.4,0.8314]
[1738180933837,3.20769,3117.5,3116.2,3.610843]
[1738180933838,3.20839,3116.9,3116.7,0.8314]
[1738180934012,3.208,3117.2,3116.7,0.8314]
[1738180934233,3.20833,3116.9,3116.7,0.8314]
[1738180934438,3.20833,3116.9,3116.0,3.20921]
[1738180934439,3.20738,3117.8,3115.9,0.8314]
[1738180934740,3.20769,3117.5,3116.8,0.8314]
[1738180934941,3.20753,3117.7,3116.9,0.0075]
[1738180935242,0.7533,3118.6,3116.9,3.21581]
[1738180935243,3.20742,3117.8,3116.9,3.21581]
[1738180935445,3.20742,3117.8,3117.1,3.20802]
[1738180935631,3.20697,3118.3,3117.7,0.0075]
[1738180935946,3.20687,3118.3,3117.9,0.0075]
[1738180936271,0.7875,3119.2,3117.8,0.7972]
[1738180936471,3.20677,3118.4,3117.9,0.0075]
[1738180937157,1.60484734,3121.1,3118.1,0.0075]
[1738180937158,3.20613,3119.1,3118.1,0.0075]
[1738180937392,3.20613,3119.1,3118.5,0.0075]
[1738180937529,3.20641,3118.8,3118.2,3.20696]
[1738180937734,0.7871,3119.8,3117.8,0.7972]
[1738180937735,3.20543,3119.7,3117.8,0.7972]
[1738180937936,3.20543,3119.7,3116.8,0.828]
[1738180937937,3.20728,3117.9,3116.8,0.828]
[1738180938258,3.20739,3117.8,3117.2,3.20797]
[1738180938476,3.20809,3117.2,3116.8,0.828]
[1738180938631,3.20782,3117.4,3116.8,4.03636]
[1738180938836,3.20831,3117.0,3116.8,0.828]
[1738180939047,3.20831,3116.9,3116.8,0.828]
[1738180939278,3.20777,3117.5,3115.9,0.7603]
[1738180939279,3.2091,3116.2,3115.9,0.7603]
[1738180939436,3.20901,3116.3,3115.9,0.7603]
[1738180939637,3.20749,3117.7,3116.0,3.20915]
[1738180939876,3.209,3116.3,3115.9,0.7603]
[1738180940374,0.0075,3117.7,3116.2,0.0075]
[1738180940375,3.20831,3117.0,3116.2,0.0075]
[1738180940670,3.21499,3117.7,3116.2,0.0075]
[1738180940671,3.20806,3117.2,3116.5,3.0075]
[1738180940989,3.20704,3118.2,3115.9,0.7603]
[1738180940990,3.20924,3116.0,3115.9,0.7603]
[1738180941166,3.20974,3115.6,3115.4,0.7608]
[1738180941471,3.20997,3115.3,3114.6,0.8243]
[1738180941672,3.20955,3115.7,3114.9,3.2103]
[1738180941834,3.20831,3116.9,3115.2,0.0075]
[1738180942030,3.20831,3116.9,3115.6,0.8243]
[1738180942031,3.20841,3116.8,3115.6,0.8243]
[1738180942235,0.7552,3117.0,3115.0,0.8243]
[1738180942236,3.0075,3116.3,3115.0,0.8243]
[1738180942469,3.21016,3115.1,3115.0,0.8243]
[1738180942656,3.21075,3114.6,3114.2,0.7867]
[1738180942865,3.21031,3115.0,3114.4,3.21085]
[1738180943066,3.21031,3115.0,3114.5,3.0]
[1738180943265,3.21053,3114.8,3114.5,0.3]
[1738180943467,3.21031,3115.0,3114.4,3.21088]
[1738180943648,3.20986,3115.4,3114.2,0.7867]
[1738180943834,3.21088,3114.5,3114.2,0.7867]
[1738180944063,3.21062,3114.7,3114.2,0.7867]
[1738180944239,3.20982,3115.5,3114.3,0.015]
[1738180944436,3.20982,3115.5,3114.9,0.0075]
[1738180944772,0.8328,3116.5,3114.5,3.7829]
[1738180944973,3.21068,3114.6,3114.5,0.7829]
[1738180945176,3.0,3116.2,3114.6,3.21067]
[1738180945336,3.20852,3116.8,3115.6,0.0075]
[1738180945537,3.20892,3116.4,3115.8,0.0075]
[1738180945735,0.8328,3117.1,3115.1,3.0]
[1738180945736,4.04098,3117.1,3115.1,3.0]
[1738180945937,3.20901,3116.3,3114.9,0.7577]
[1738180946245,3.21016,3115.1,3114.9,0.7577]
[1738180946443,3.21016,3115.1,3114.2,3.21107]
[1738180946444,0.55,3115.5,3114.2,0.7767]
[1738180946681,3.21099,3114.3,3114.2,0.7767]
[1738180946881,3.21116,3114.2,3113.6,0.7767]
[1738180947084,0.8312,3115.2,3113.6,1.175542]
[1738180947382,3.21062,3114.7,3114.1,0.0075]
[1738180947683,3.21058,3114.7,3113.6,0.7767]
[1738180947886,0.8076,3114.7,3113.6,0.7767]
[1738180948185,3.21161,3113.7,3113.6,0.7767]
[1738180948383,0.8076,3115.1,3112.9,0.7793]
[1738180948384,1.3651,3114.6,3112.9,0.7793]
[1738180948561,3.21272,3112.7,3112.2,0.8295]
[1738180948760,3.2119,3113.5,3112.5,0.0075]
[1738180948996,3.21157,3113.8,3113.1,0.0075]
[1738180949286,3.21182,3113.5,3113.1,0.404935]
[1738180949498,3.21162,3113.7,3113.1,3.0075]
[1738180949790,3.21193,3113.4,3113.1,0.0075]
[1738180949950,0.8076,3114.6,3113.1,0.0075]
[1738180949951,3.21162,3113.7,3113.1,0.0075]
[1738180950151,3.21109,3114.2,3112.5,0.7673]
[1738180950352,3.21194,3113.4,3112.5,0.7673]
[1738180950586,3.21165,3113.7,3112.8,3.21247]
[1738180950799,3.20963,3115.7,3113.0,0.0075]
[1738180950800,3.21144,3113.9,3113.0,0.0075]
[1738180950980,3.21123,3114.1,3113.3,0.0075]
[1738180951297,3.2117,3113.7,3113.3,0.0075]
[1738180951598,3.21169,3113.7,3113.3,0.0075]
[1738180951753,3.21148,3113.9,3113.3,0.0075]
[1738180952080,0.55,3113.5,3112.2,0.7605]
[1738180952262,3.7914,3113.6,3112.1,0.005]
[1738180952263,3.21316,3112.2,3112.1,0.005]
[1738180952658,3.21212,3113.2,3112.1,0.005]
[1738180952860,3.21316,3112.2,3112.1,0.005]
[1738180953198,3.21303,3112.4,3112.1,0.005]
[1738180953366,3.21274,3112.7,3112.1,0.005]
[1738180953693,3.21284,3112.6,3112.1,0.7936]
[1738180953854,0.7929,3113.4,3112.1,0.7936]
[1738180953855,3.21316,3112.2,3112.1,0.7936]
[1738180954058,3.21316,3112.2,3112.1,0.005]
[1738180954361,3.21212,3113.2,3112.1,0.005]
[1738180954567,0.0075,3113.3,3112.1,0.005]
[1738180954568,3.21316,3112.2,3112.1,0.005]
[1738180954870,3.76316,3112.2,3112.1,0.005]
[1738180955257,0.55,3110.9,3110.7,0.133593]
[1738180955493,3.7646,3110.8,3110.7,0.133593]
[1738180955857,3.2146,3110.8,3110.7,0.133593]
[1738180956055,6.4259,3112.4,3110.7,0.133593]
[1738180956256,3.21416,3111.3,3110.7,0.133593]
[1738180956459,3.0,3112.1,3110.7,0.133593]
[1738180956824,3.7646,3110.8,3110.7,0.133593]
[1738180958080,3.2146,3110.8,3110.7,0.133593]
[1738180958282,3.21383,3111.6,3110.7,0.133593]
[1738180958470,0.8264,3112.2,3111.0,3.21437]
[1738180958676,3.22076,3112.1,3110.8,0.8314]
[1738180958903,3.2141,3111.3,3110.8,0.8314]
[1738180959231,3.21368,3111.7,3110.9,0.0075]
[1738180959395,3.21983,3113.1,3111.4,3.21395]
[1738180959396,0.7962,3112.7,3111.4,3.21395]
[1738180959575,3.21274,3112.6,3111.0,0.015]
[1738180959777,3.2132,3112.2,3111.3,3.0]
[1738180960092,0.7962,3112.7,3111.3,6.835483]
[1738180960289,3.21299,3112.4,3111.6,3.21369]
[1738180960526,3.21276,3112.6,3111.4,0.7739]
[1738180960692,3.21304,3112.4,3111.7,0.0075]
[1738180960936,3.21315,3112.3,3111.7,0.0075]
[1738180961220,0.7514,3113.2,3111.7,3.543287]
[1738180961379,3.21286,3112.5,3111.8,0.0075]
[1738180961576,3.21286,3112.5,3112.0,0.0075]
[1738180961778,3.21223,3113.1,3111.4,0.7739]
[1738180961779,0.0075,3113.1,3111.6,3.0]
[1738180961990,0.7514,3113.2,3111.6,3.0]
[1738180961991,3.21329,3112.1,3111.6,3.0]
[1738180962198,3.21337,3112.0,3111.5,3.0]
[1738180962393,3.21357,3111.8,3110.9,4.02484]
[1738180962599,3.21388,3111.5,3110.9,0.8104]
[1738180962893,3.21443,3111.0,3110.7,0.133593]
[1738180963112,3.2141,3111.3,3110.7,0.133593]
[1738180963495,3.21413,3111.3,3110.7,0.133593]
[1738180963787,3.21379,3111.6,3111.0,3.21439]
[1738180964006,3.21397,3111.5,3110.7,0.133593]
[1738180964192,3.2146,3110.8,3110.7,0.133593]
[1738180964401,3.21448,3111.0,3110.7,0.133593]
[1738180964600,4.0166,3110.8,3110.7,0.133593]
[1738180964801,4.5666,3110.8,3110.7,0.133593]
[1738180965003,4.0166,3110.8,3110.7,0.133593]
[1738180965250,3.2146,3110.8,3110.7,0.133593]
[1738180965421,3.2146,3110.8,3110.7,3e-06]
[1738180965728,3.7646,3110.8,3110.7,3e-06]
[1738180966281,6.7646,3110.8,3110.7,3e-06]
[1738180966485,7.5497,3110.8,3110.7,3e-06]
[1738180967501,4.5497,3110.8,3110.7,3e-06]
[1738180968090,4.5572,3110.8,3110.7,3e-06]
[1738180968529,4.5572,3110.8,3108.5,3.21689]
[1738180968530,3.21664,3108.9,3108.5,0.7545]
[1738180968845,0.7792,3110.4,3108.0,0.8244]
[1738180968846,0.55,3109.1,3108.0,0.8244]
[1738180969131,3.21615,3109.3,3108.0,0.8244]
[1738180969132,3.21681,3108.7,3108.0,0.8244]
[1738180969286,3.21706,3108.5,3108.0,0.8244]
[1738180969492,3.21781,3107.7,3107.6,0.1609095]
[1738180969838,3.21726,3108.3,3107.6,0.1609095]
[1738180969992,3.21709,3108.4,3107.6,0.1609095]
[1738180970187,3.21703,3108.5,3107.9,3.21757]
[1738180970387,3.217,3108.5,3107.9,3.2176]
[1738180970705,3.21762,3107.9,3107.6,0.1609095]
[1738180971030,3.21657,3108.9,3107.6,0.1609095]
[1738180971332,3.21781,3107.7,3107.6,0.1609095]
[1738180971535,3.76781,3107.7,3107.6,0.1609095]
[1738180972248,7.53771,3107.7,3107.6,9.5e-06]
[1738180972415,3.21833,3107.2,3107.1,7.06e-06]
[1738180972747,6.21833,3107.2,3107.1,7.06e-06]
[1738180972947,6.77583,3107.2,3107.1,7.06e-06]
[1738180973130,6.77583,3107.2,3105.0,0.7985]
[1738180973330,0.016,3118.4,3106.2,4.03034]
[1738180973331,3.98788,3107.6,3106.2,4.03034]
[1738180973644,3.98788,3107.6,3104.7,0.64526088]
[1738180973645,0.0075,3107.5,3106.3,0.04234692]
[1738180973946,3.21919,3106.4,3105.7,0.811]
[1738180974329,3.21936,3106.3,3105.7,0.811]
[1738180974538,0.7699,3107.6,3105.7,1.214106]
[1738180974740,3.21854,3107.0,3106.2,3.21934]
[1738180974922,0.7699,3107.6,3105.8,0.0075]
[1738180975133,3.21836,3107.2,3106.3,3.21923]
[1738180975331,3.21836,3107.2,3106.0,0.7922]
[1738180975332,3.21851,3107.1,3106.0,0.7922]
[1738180975561,3.21862,3107.0,3106.0,0.7922]
[1738180975735,0.55,3107.4,3106.0,0.7922]
[1738180975736,3.21835,3107.2,3106.2,3.21927]
[1738180976048,3.21783,3107.7,3106.1,0.0075]
[1738180976249,0.7885,3108.0,3106.2,3.0]
[1738180976555,0.7885,3108.6,3107.9,3.2176]
[1738180976726,3.21684,3108.7,3107.8,0.8078]
[1738180977050,3.21691,3108.6,3107.8,0.8078]
[1738180977347,3.2176,3107.9,3107.8,0.8078]
[1738180977656,3.21636,3109.1,3107.1,0.7503]
[1738180977657,3.41657,3108.9,3107.1,0.7503]
[1738180977861,3.21811,3107.5,3106.7,3.21875]
[1738180978069,3.21742,3108.1,3106.7,0.396905]
[1738180978070,3.21746,3108.1,3106.7,0.396905]
[1738180978345,3.2174,3108.1,3107.2,3.21831]
[1738180978522,3.21711,3108.4,3107.7,3.21772]
[1738180978720,3.21666,3108.9,3107.7,0.0075]
[1738180978937,3.2164,3109.1,3108.4,3.217]
[1738180979326,3.21629,3109.2,3108.4,3.217]
[1738180979509,3.21629,3109.2,3108.2,3.21729]
[1738180979848,3.21629,3109.2,3107.7,3.21771]
[1738180979849,3.21502,3110.4,3108.6,0.7794]
[1738180980053,3.21626,3109.2,3108.6,0.7794]
[1738180980359,3.21677,3108.7,3108.0,0.8325]
[1738180980645,3.21605,3109.4,3108.3,0.0075]
[1738180980810,3.21576,3109.7,3108.8,0.0075]
[1738180981011,3.2163,3109.2,3108.9,0.8325]
[1738180981207,3.2163,3109.2,3107.7,3.0]
[1738180981208,3.21686,3108.7,3107.7,3.21774]
[1738180981447,3.2173,3108.2,3107.5,0.8325]
[1738180981650,3.21707,3108.5,3107.5,0.8325]
[1738180981821,3.21645,3109.1,3108.1,0.837]
[1738180982024,3.21874,3106.8,3105.6,0.7999]
[1738180982431,3.21903,3106.6,3105.7,0.401992]
[1738180982613,3.21924,3106.4,3105.7,0.401992]
[1738180982819,3.21936,3106.3,3105.6,0.7999]
[1738180983013,3.21936,3106.3,3105.7,0.00401258]
[1738180983235,2.072521,3107.4,3106.2,3.21929]
[1738180983537,3.21838,3107.2,3106.5,3.21903]
[1738180983739,3.21844,3107.1,3106.3,3.22669]
[1738180983938,3.21854,3107.0,3106.3,3.627769]
[1738180984169,3.21854,3107.0,3106.4,3.21914]
[1738180984372,0.8216,3108.0,3106.6,3.21888]
[1738180984373,3.2182,3107.4,3106.6,3.21888]
[1738180984574,3.2182,3107.4,3106.1,0.8309]
[1738180984575,3.21874,3106.8,3106.1,0.8309]
[1738180984747,3.21896,3106.6,3106.1,0.8309]
[1738180985247,3.21936,3106.2,3106.1,0.8309]
[1738180985443,3.21957,3106.1,3105.4,3.22016]
[1738180985629,3.21808,3107.5,3104.5,0.4109095]
[1738180985630,3.22016,3105.5,3105.0,0.7981]
[1738180985834,0.0075,3106.8,3105.0,0.7981]
[1738180986055,3.22102,3104.6,3104.5,0.4109095]
[1738180986361,3.757,3106.2,3104.5,0.4109095]
[1738180986362,3.22084,3104.8,3104.5,0.4109095]
[1738180986759,3.22102,3104.6,3104.5,0.4109095]
[1738180986981,3.22027,3105.4,3104.5,3.6320295]
[1738180987147,3.22033,3105.3,3104.6,0.43882295]
[1738180987346,3.22033,3105.3,3104.6,3.22102]
[1738180987550,3.22044,3105.2,3104.6,3.22102]
[1738180987748,3.22005,3105.6,3104.7,3.22832]
[1738180987949,3.22095,3104.7,3104.5,0.4109095]
[1738180988161,3.22073,3104.9,3104.5,0.4109095]
[1738180988363,3.22024,3105.4,3104.5,0.4109095]
[1738180988583,3.22015,3105.5,3104.5,0.4109095]
[1738180988783,0.8173,3106.9,3105.2,3.22032]
[1738180988990,3.21884,3106.7,3105.1,0.7934]
[1738180989185,3.8173,3106.9,3104.5,1.1992095]
[1738180989361,3.22052,3105.1,3104.5,1.1992095]
[1738180989556,3.22067,3105.0,3104.5,1.1992095]
[1738180990055,3.22042,3105.2,3104.5,0.4109095]
[1738180990249,3.22051,3105.1,3104.5,0.4109095]
[1738180990481,3.22102,3104.6,3104.5,0.4109095]
[1738180990789,0.7606,3105.8,3104.5,0.4109095]
[1738180990989,0.7606,3105.8,3104.5,3.6319795]
[1738180991408,3.21986,3105.8,3105.1,4.0041]
[1738180991607,3.21986,3105.8,3105.2,3.2204]
[1738180991892,3.97539,3106.3,3105.1,0.7836]
[1738180991893,3.21949,3106.1,3105.3,3.22022]
[1738180992057,3.21949,3106.1,3105.4,3.22018]
[1738180992252,3.21949,3106.1,3105.1,0.7836]
[1738180992253,0.7561,3107.4,3105.5,0.03481805]
[1738180992454,3.21893,3106.7,3105.8,6.44706]
[1738180992666,3.2187,3106.9,3105.8,6.44706]
[1738180992667,3.2187,3106.9,3106.0,3.21949]
[1738180992890,3.21845,3107.1,3106.4,3.21908]
[1738180993062,3.21782,3107.7,3106.7,0.8023]
[1738180993266,0.768,3107.9,3106.8,0.03355748]
[1738180993465,3.21864,3106.9,3106.3,0.0075]
[1738180993672,3.21924,3106.4,3106.2,0.8231]
[1738180993981,0.768,3107.9,3104.6,0.1]
[1738180993982,0.968,3107.9,3105.6,0.7985]
[1738180994175,3.21969,3105.9,3105.6,0.7985]
[1738180994353,3.21978,3105.8,3105.6,0.7985]
[1738180994675,3.21978,3105.8,3105.7,0.03443789]
[1738180994875,3.21978,3105.8,3105.2,3.22037]
[1738180995125,3.21906,3106.5,3105.3,0.03476266]
[1738180995126,3.21905,3106.5,3105.3,0.03476266]
[1738180995424,3.22019,3105.4,3105.3,0.03476266]
[1738180995573,0.8247,3106.8,3105.1,0.7985]
[1738180995774,3.21826,3107.3,3105.7,3.21978]
[1738180995775,3.21912,3106.5,3105.7,3.21978]
[1738180996019,3.21927,3106.3,3105.4,3.22767]
[1738180996317,3.21936,3106.2,3105.1,0.7985]
[1738180996460,3.21998,3105.6,3105.5,0.03460026]
[1738180996658,3.22069,3105.0,3104.6,0.8281]
[1738180996875,3.21988,3105.7,3104.7,0.03524997]